[Event "NOR-ch Youth 2019"]
[Site "Skien"]
[Date "2019.11.08"]
[Round "2.19"]
[White "Brattgjerd, Isak Vinh"]
[Black "Ho, Nhat-Huy Dac"]
[Result "1-0"]
[ECO "D00"]
[WhiteElo "1699"]
[BlackElo "1178"]
[Annotator "NA RC"]
[PlyCount "87"]
[EventDate "2019.11.08"]
[EventType "swiss"]
[EventCountry "NOR"]
[SourceTitle "playchess.com"]
[Source "ChessBase"]
[SourceQuality "1"]
[TimeControl "2400+10"]

1. d4 {[%emt 0:00:00]} e6 {[%emt 0:00:00]} 2. Bf4 {[%emt 0:00:00]} d5 {[%emt 0:00:20]} 3. e3 {[%emt 0:00:00]} Nc6 {[%emt 0:00:10]} 4. c3 {[%emt 0:00:02]} Bd6 {[%emt 0:00:32]} 5. Bg3 {[%emt 0:00:03]} Nf6 {[%emt 0:00:15]} 6. Bd3 {[%emt 0:00:02]} Bxg3 {[%emt 0:00:22]} 7. hxg3 {[%emt 0:00:02]} O-O {[%emt 0:00:22]} 8. Nf3 {[%emt 0:00:02]} Qe7 {[%emt 0:00:49]} 9. Ne5 {[%emt 0:00:07]} Bd7 {[%emt 0:00:41]} 10. Bxh7+ {[%emt 0:06:46]} Kh8 {[%emt 0:01:33]} 11. Bg6+ {[%emt 0:01:43]} Kg8 {[%emt 0:00:05]} 12. Bxf7+ {[%emt 0:03:24]} Rxf7 {[%emt 0:00:21]} 13. Ng6 {[%emt 0:00:16]} Rff8 {[%emt 0:01:43]} 14. Nxe7+ {[%emt 0:00:17]} Nxe7 {[%emt 0:00:02]} 15. Nd2 {[%emt 0:00:00]} Ng6 {[%emt 0:00:28]} 16. Qc2 {[%emt 0:00:04]} Nh8 {[%emt 0:00:35]} 17. e4 {[%emt 0:00:04]} Be8 {[%emt 0:00:25]} 18. e5 {[%emt 0:00:16]} Bg6 {[%emt 0:00:03]} 19. Qd1 {[%emt 0:00:01]} Nh7 {[%emt 0:00:17]} 20. Nf3 {[%emt 0:00:33]} Be4 {[%emt 0:00:33]} 21. c4 {[%emt 0:00:27]} Rad8 {[%emt 0:01:00]} 22. cxd5 {[%emt 0:00:04]} Rxd5 {[%emt 0:00:03]} 23. Rc1 {[%emt 0:00:04]} c6 {[%emt 0:00:18]} 24. Rc4 {[%emt 0:00:46]} Rd7 {[%emt 0:00:19]} 25. Qe2 {[%emt 0:00:51]} Bd5 {[%emt 0:00:32]} 26. Rc3 {[%emt 0:00:11]} Rdf7 {[%emt 0:01:12]} 27. Rxh7 {[%emt 0:01:28]} Kxh7 {[%emt 0:00:53]} 28. Ng5+ {[%emt 0:00:03]} Kg8 {[%emt 0:00:00]} 29. Nxf7 {[%emt 0:00:03]} Rxf7 {[%emt 0:00:01]} 30. f3 {[%emt 0:00:05]} a6 {[%emt 0:00:27]} 31. a4 {[%emt 0:00:20]} g6 {[%emt 0:00:34]} 32. b4 {[%emt 0:00:07]} Kg7 {[%emt 0:00:08]} 33. b5 {[%emt 0:00:10]} cxb5 {[%emt 0:00:47]} 34. axb5 {[%emt 0:00:00]} a5 {[%emt 0:00:01]} 35. Qc2 {[%emt 0:00:23]} g5 {[%emt 0:00:27]} 36. Rc7 {[%emt 0:00:04]} Rxc7 {[%emt 0:00:04]} 37. Qxc7+ {[%emt 0:00:00]} Nf7 {[%emt 0:00:05]} 38. Qxa5 {[%emt 0:00:03]} Kg6 {[%emt 0:00:18]} 39. g4 {[%emt 0:00:25]} Nh8 {[%emt 0:00:20]} 40. Qd8 {[%emt 0:00:03]} Nf7 {[%emt 0:00:02]} 41. Qf6+ {[%emt 0:00:02]} Kh7 {[%emt 0:00:00]} 42. Qxf7+ {[%emt 0:00:01]} Kh8 {[%emt 0:00:00]} 43. f4 {[%emt 0:00:05]} gxf4 {[%emt 0:00:01]} 44. g5 {[%emt 0:00:01]} 1-0

[Event "NOR-ch Youth 2019"]
[Site "Skien"]
[Date "2019.11.08"]
[Round "2.20"]
[White "Bakkerud, Balder Jonsson"]
[Black "Ostensen, Nicolai Maxime"]
[Result "0-1"]
[ECO "A65"]
[WhiteElo "1186"]
[BlackElo "1691"]
[Annotator "NA RC"]
[PlyCount "45"]
[EventDate "2019.11.08"]
[EventType "swiss"]
[EventCountry "NOR"]
[SourceTitle "playchess.com"]
[Source "ChessBase"]
[SourceQuality "1"]
[TimeControl "2400+10"]

1. d4 {[%emt 0:00:00]} Nf6 {[%emt 0:00:00]} 2. c4 {[%emt 0:00:04]} c5 {[%emt 0:00:00]} 3. d5 {[%emt 0:00:15]} e6 {[%emt 0:00:01]} 4. Nc3 {[%emt 0:00:13]} exd5 {[%emt 0:00:08]} 5. cxd5 {[%emt 0:00:11]} d6 {[%emt 0:00:01]} 6. e4 {[%emt 0:00:17]} a6 {[%emt 0:00:21]} 7. a4 {[%emt 0:01:00]} g6 {[%emt 0:00:19]} 8. f4 {[%emt 0:00:33]} Nbd7 {[%emt 0:02:44]} 9. Nf3 {[%emt 0:00:27]} Bg7 {[%emt 0:02:58]} 10. Bc4 {[%emt 0:09:07]} O-O {[%emt 0:02:17]} 11. O-O {[%emt 0:00:16]} Nb6 {[%emt 0:00:46]} 12. Bb3 {[%emt 0:00:44]} Bg4 {[%emt 0:01:32]} 13. Be3 {[%emt 0:01:10]} Bxf3 {[%emt 0:02:28]} 14. Qxf3 {[%emt 0:00:25]} Nfd7 {[%emt 0:01:46]} 15. a5 {[%emt 0:04:41]} Nc8 {[%emt 0:00:12]} 16. Ba4 {[%emt 0:01:38]} Rb8 {[%emt 0:14:21]} 17. Qf2 {[%emt 0:05:13]} b5 {[%emt 0:00:56]} 18. axb6 {[%emt 0:00:21]} Ncxb6 {[%emt 0:00:02]} 19. Bxd7 {[%emt 0:00:43]} Qxd7 {[%emt 0:00:38]} 20. Rxa6 {[%emt 0:00:36]} Nc4 {[%emt 0:00:15]} 21. Ra2 {[%emt 0:02:50]} Nxe3 {[%emt 0:00:06]} 22. Qxe3 {[%emt 0:00:10]} Bd4 {[%emt 0:00:02]} 23. Qxd4 {[%emt 0:01:01]} 0-1

[Event "NOR-ch Youth 2019"]
[Site "Skien"]
[Date "2019.11.08"]
[Round "2.21"]
[White "Khoo-Thwe, Louis"]
[Black "Tollefsen, Jacob"]
[Result "1/2-1/2"]
[ECO "C50"]
[WhiteElo "1660"]
[BlackElo "1160"]
[Annotator "NA RC"]
[PlyCount "100"]
[EventDate "2019.11.08"]
[EventType "swiss"]
[EventCountry "NOR"]
[SourceTitle "playchess.com"]
[Source "ChessBase"]
[SourceQuality "1"]
[TimeControl "2400+10"]

1. e4 {[%emt 0:00:00]} e5 {[%emt 0:00:00]} 2. Nf3 {[%emt 0:00:00]} Nc6 {[%emt 0:00:00]} 3. Bc4 {[%emt 0:00:00]} Bc5 {[%emt 0:00:43]} 4. O-O {[%emt 0:00:04]} h6 {[%emt 0:00:31]} 5. c3 {[%emt 0:00:14]} d6 {[%emt 0:03:26]} 6. d4 {[%emt 0:00:11]} Bb6 {[%emt 0:00:18]} 7. dxe5 {[%emt 0:00:41]} Qe7 {[%emt 0:02:58]} 8. exd6 {[%emt 0:00:18]} cxd6 {[%emt 0:00:15]} 9. Bf4 {[%emt 0:01:32]} Bc7 {[%emt 0:02:31]} 10. Na3 {[%emt 0:01:45]} a6 {[%emt 0:01:17]} 11. Qd3 {[%emt 0:01:01]} Qf6 {[%emt 0:03:26]} 12. Bg3 {[%emt 0:00:41]} Bg4 {[%emt 0:05:06]} 13. Rad1 {[%emt 0:02:32]} Bxf3 {[%emt 0:01:21]} 14. Qxf3 {[%emt 0:00:03]} Qxf3 {[%emt 0:00:01]} 15. gxf3 {[%emt 0:00:03]} Rd8 {[%emt 0:00:10]} 16. Rd2 {[%emt 0:00:21]} Nf6 {[%emt 0:00:08]} 17. Rfd1 {[%emt 0:00:03]} Ne5 {[%emt 0:00:08]} 18. Bd5 {[%emt 0:02:54]} Nxf3+ {[%emt 0:00:50]} 19. Kg2 {[%emt 0:00:19]} Nxd2 {[%emt 0:00:02]} 20. Rxd2 {[%emt 0:00:00]} Nxd5 {[%emt 0:00:20]} 21. Rxd5 {[%emt 0:00:01]} b5 {[%emt 0:01:10]} 22. c4 {[%emt 0:00:19]} bxc4 {[%emt 0:00:52]} 23. Nxc4 {[%emt 0:00:02]} O-O {[%emt 0:00:34]} 24. Kf3 {[%emt 0:01:31]} Rfe8 {[%emt 0:00:56]} 25. Nxd6 {[%emt 0:02:59]} Bxd6 {[%emt 0:00:17]} 26. Bxd6 {[%emt 0:00:02]} Re6 {[%emt 0:00:22]} 27. Bc5 {[%emt 0:00:14]} Rxd5 {[%emt 0:00:08]} 28. exd5 {[%emt 0:00:01]} Re5 {[%emt 0:00:09]} 29. Bd4 {[%emt 0:01:27]} Rxd5 {[%emt 0:00:03]} 30. Ke4 {[%emt 0:00:01]} Rh5 {[%emt 0:00:10]} 31. Be5 {[%emt 0:00:02]} f6 {[%emt 0:00:08]} 32. Bg3 {[%emt 0:00:08]} Rc5 {[%emt 0:00:05]} 33. Kd3 {[%emt 0:00:10]} Kf7 {[%emt 0:00:06]} 34. Bf4 {[%emt 0:00:17]} g5 {[%emt 0:00:07]} 35. Be3 {[%emt 0:00:01]} Rc6 {[%emt 0:00:09]} 36. b4 {[%emt 0:00:10]} Ke6 {[%emt 0:00:05]} 37. a4 {[%emt 0:00:02]} Rc8 {[%emt 0:00:13]} 38. b5 {[%emt 0:00:53]} axb5 {[%emt 0:00:06]} 39. axb5 {[%emt 0:00:02]} Kd5 {[%emt 0:00:04]} 40. Ba7 {[%emt 0:01:53]} Ra8 {[%emt 0:00:17]} 41. b6 {[%emt 0:00:10]} Kc6 {[%emt 0:00:06]} 42. Ke4 {[%emt 0:00:01]} Rf8 {[%emt 0:00:13]} 43. Kf5 {[%emt 0:00:02]} Kb7 {[%emt 0:00:05]} 44. Kg6 {[%emt 0:00:23]} Re8 {[%emt 0:00:19]} 45. Kxf6 {[%emt 0:00:45]} Re2 {[%emt 0:00:04]} 46. Kg6 {[%emt 0:00:03]} Rxf2 {[%emt 0:00:03]} 47. Kxh6 {[%emt 0:00:01]} Rxh2+ {[%emt 0:00:03]} 48. Kxg5 {[%emt 0:00:02]} Rb2 {[%emt 0:00:01]} 49. Kf4 {[%emt 0:00:04]} Rxb6 50. Bxb6 {[%emt 0:00:01]} Kxb6 {[%emt 0:00:03]} 1/2-1/2

[Event "NOR-ch Youth 2019"]
[Site "Skien"]
[Date "2019.11.08"]
[Round "2.23"]
[White "Lindstad, Victor"]
[Black "Haug, Havard"]
[Result "0-1"]
[ECO "B62"]
[WhiteElo "1068"]
[BlackElo "1544"]
[Annotator "NA RC"]
[PlyCount "84"]
[EventDate "2019.11.08"]
[EventType "swiss"]
[EventCountry "NOR"]
[SourceTitle "playchess.com"]
[Source "ChessBase"]
[SourceQuality "1"]
[TimeControl "2400+10"]

1. e4 {[%emt 0:00:00]} c5 {[%emt 0:00:00]} 2. Nf3 {[%emt 0:00:02]} Nc6 {[%emt 0:00:00]} 3. d4 {[%emt 0:00:11]} cxd4 {[%emt 0:00:00]} 4. Nxd4 {[%emt 0:00:32]} Nf6 {[%emt 0:00:00]} 5. Nc3 {[%emt 0:00:22]} d6 {[%emt 0:00:07]} 6. Bc4 {[%emt 0:00:32]} e6 {[%emt 0:00:10]} 7. Bg5 {[%emt 0:00:31]} Be7 {[%emt 0:00:14]} 8. O-O {[%emt 0:00:10]} O-O {[%emt 0:00:10]} 9. Qf3 {[%emt 0:02:07]} Nxd4 {[%emt 0:00:01]} 10. Qd3 {[%emt 0:00:43]} Nc6 {[%emt 0:00:06]} 11. Bxf6 {[%emt 0:00:34]} Bxf6 {[%emt 0:00:02]} 12. Rab1 {[%emt 0:00:45]} Ne5 {[%emt 0:00:02]} 13. Qe2 {[%emt 0:00:37]} Nxc4 {[%emt 0:00:02]} 14. Qxc4 {[%emt 0:00:06]} Bxc3 {[%emt 0:00:07]} 15. Qxc3 {[%emt 0:00:38]} Bd7 {[%emt 0:00:05]} 16. Rfe1 {[%emt 0:00:29]} Qc8 {[%emt 0:00:07]} 17. Qd3 {[%emt 0:00:16]} Qc7 {[%emt 0:00:21]} 18. c4 {[%emt 0:00:50]} Bc6 {[%emt 0:00:09]} 19. b4 {[%emt 0:00:45]} b6 {[%emt 0:00:15]} 20. b5 {[%emt 0:00:12]} Bb7 {[%emt 0:00:01]} 21. a4 {[%emt 0:00:10]} Rac8 {[%emt 0:00:08]} 22. Rec1 {[%emt 0:00:34]} d5 {[%emt 0:00:20]} 23. exd5 {[%emt 0:02:44]} exd5 {[%emt 0:00:00]} 24. Rb4 {[%emt 0:00:35]} dxc4 {[%emt 0:00:17]} 25. Rcxc4 {[%emt 0:00:22]} Qe7 {[%emt 0:02:20]} 26. Qf1 {[%emt 0:02:53]} Rxc4 {[%emt 0:00:17]} 27. Rxc4 {[%emt 0:00:11]} a6 {[%emt 0:00:17]} 28. Qd3 {[%emt 0:01:02]} Qe1+ {[%emt 0:00:02]} 29. Qf1 {[%emt 0:00:22]} Qxf1+ {[%emt 0:00:02]} 30. Kxf1 {[%emt 0:00:20]} Rc8 {[%emt 0:00:13]} 31. bxa6 {[%emt 0:01:27]} Bxa6 {[%emt 0:00:01]} 32. Ke1 {[%emt 0:01:18]} Rxc4 {[%emt 0:00:01]} 33. Kd2 {[%emt 0:00:21]} Rxa4 34. g3 {[%emt 0:00:24]} Rc4 {[%emt 0:00:00]} 35. h4 {[%emt 0:00:50]} b5 {[%emt 0:00:01]} 36. f4 {[%emt 0:00:26]} b4 {[%emt 0:00:00]} 37. Kd3 {[%emt 0:00:17]} b3 {[%emt 0:00:01]} 38. Kd2 {[%emt 0:00:16]} b2 {[%emt 0:00:01]} 39. h5 {[%emt 0:00:17]} b1=Q {[%emt 0:00:00]} 40. Ke3 {[%emt 0:00:22]} Rc3+ {[%emt 0:00:57]} 41. Kf2 {[%emt 0:00:57]} Qb2+ {[%emt 0:00:00]} 42. Kg1 {[%emt 0:00:30]} Rc1# {[%emt 0:00:00]} 0-1

[Event "NOR-ch Youth 2019"]
[Site "Skien"]
[Date "2019.11.09"]
[Round "3.2"]
[White "Lund, Gunnar"]
[Black "Fossan, Aleksander"]
[Result "1/2-1/2"]
[ECO "A45"]
[WhiteElo "2274"]
[BlackElo "2179"]
[Annotator "RC"]
[PlyCount "80"]
[EventDate "2019.11.08"]
[EventType "swiss"]
[EventCountry "NOR"]
[SourceTitle "playchess.com"]
[Source "ChessBase"]
[SourceQuality "1"]
[TimeControl "2400+10"]

1. d4 {[%emt 0:00:00]} Nf6 {[%emt 0:01:15]} 2. Bg5 {[%emt 0:00:01]} c5 {[%emt 0:00:20]} 3. d5 {[%emt 0:00:03]} Ne4 {[%emt 0:00:15]} 4. Bf4 {[%emt 0:00:03]} Qb6 {[%emt 0:00:03]} 5. Bc1 {[%emt 0:00:02]} e6 {[%emt 0:00:44]} 6. f3 {[%emt 0:00:39]} Nf6 {[%emt 0:00:03]} 7. e4 {[%emt 0:00:51]} exd5 {[%emt 0:01:21]} 8. exd5 {[%emt 0:00:03]} Be7 {[%emt 0:01:59]} 9. Nc3 {[%emt 0:01:08]} O-O {[%emt 0:00:43]} 10. Nh3 {[%emt 0:03:14]} Bd6 {[%emt 0:02:54]} 11. Be2 {[%emt 0:00:47]} a6 {[%emt 0:00:04]} 12. a4 {[%emt 0:01:26]} Qb4 {[%emt 0:04:11]} 13. O-O {[%emt 0:01:40]} Be5 {[%emt 0:00:45]} 14. Ra3 {[%emt 0:04:58]} d6 {[%emt 0:02:20]} 15. f4 {[%emt 0:02:54]} Bd4+ {[%emt 0:01:17]} 16. Nf2 {[%emt 0:00:04]} Nbd7 {[%emt 0:03:44]} 17. Kh1 {[%emt 0:01:51]} Bxf2 {[%emt 0:01:12]} 18. Rxf2 {[%emt 0:00:02]} Qd4 {[%emt 0:00:03]} 19. Rf1 {[%emt 0:00:38]} Nb6 {[%emt 0:00:14]} 20. a5 {[%emt 0:03:15]} Nbxd5 {[%emt 0:02:39]} 21. Qxd4 cxd4 {[%emt 0:00:01]} 22. Nxd5 {[%emt 0:00:16]} Nxd5 {[%emt 0:00:01]} 23. Rd3 {[%emt 0:00:16]} Ne3 {[%emt 0:02:42]} 24. Bxe3 {[%emt 0:00:16]} dxe3 {[%emt 0:00:01]} 25. Rxe3 {[%emt 0:00:03]} Bf5 {[%emt 0:00:35]} 26. Bd3 {[%emt 0:02:34]} Bxd3 {[%emt 0:00:18]} 27. Rxd3 {[%emt 0:00:02]} Rac8 {[%emt 0:01:08]} 28. c3 {[%emt 0:00:13]} Rc6 {[%emt 0:01:37]} 29. Rfd1 {[%emt 0:00:11]} Re8 {[%emt 0:02:23]} 30. Kg1 {[%emt 0:01:00]} Re6 {[%emt 0:00:01]} 31. f5 {[%emt 0:02:38]} Rf6 {[%emt 0:00:04]} 32. Rd5 {[%emt 0:00:14]} Kf8 {[%emt 0:00:43]} 33. R1d4 {[%emt 0:01:04]} b6 {[%emt 0:04:15]} 34. h3 {[%emt 0:06:11]} Ke7 {[%emt 0:01:08]} 35. Rh4 {[%emt 0:00:09]} h6 {[%emt 0:01:14]} 36. Rg4 {[%emt 0:01:11]} g6 {[%emt 0:00:39]} 37. fxg6 {[%emt 0:00:21]} fxg6 {[%emt 0:00:01]} 38. axb6 Rxb6 {[%emt 0:00:00]} 39. b4 {[%emt 0:00:50]} Rb5 {[%emt 0:00:30]} 40. Rgd4 {[%emt 0:00:27]} Kd7 {[%emt 0:00:43]} 1/2-1/2

[Event "NOR-ch Youth 2019"]
[Site "Skien"]
[Date "2019.11.09"]
[Round "3.4"]
[White "Unhjem, Bjorn Robert Lovoll"]
[Black "Holand, Per Fredrik"]
[Result "1-0"]
[ECO "B40"]
[WhiteElo "1942"]
[BlackElo "1927"]
[Annotator "NA RC"]
[PlyCount "59"]
[EventDate "2019.11.08"]
[EventType "swiss"]
[EventCountry "NOR"]
[SourceTitle "playchess.com"]
[Source "ChessBase"]
[SourceQuality "1"]
[TimeControl "2400+10"]

{[%evp 9,59,1,9,5,-4,0,0,0,10,4,10,16,25,20,4,0,0,0,20,5,0,-14,-6,-15,7,-18,25,0,-16,0,19,10,7,0,0,-23,8,0,48,-15,32767,32767,32767,32767,42,0,32767,-118,0,0,404,434]} 1. e4 {[%emt 0:03:29]} c5 {[%emt 0:00:00]} 2. Nf3 {[%emt 0:00:03]} e6 {[%emt 0:00:00]} 3. d4 {[%emt 0:00:08]} cxd4 {[%emt 0:00:03]} 4. Nxd4 {[%emt 0:00:03]} Nf6 {[%emt 0:00:05]} 5. Bd3 {[%emt 0:00:20]} Nc6 {[%emt 0:00:41]} 6. Nb3 {[%emt 0:00:16]} d5 {[%emt 0:01:00]} 7. exd5 {[%emt 0:00:16]} exd5 {[%emt 0:00:03]} 8. O-O {[%emt 0:00:06] B40: Sicilian: 2...e6, Unusual lines} Be7 {[%emt 0:00:02]} 9. Nc3 {[%emt 0:01:59]} O-O {[%emt 0:00:22]} 10. Bg5 {[%emt 0:00:50]} h6 {[%emt 0:01:23]} (10... Be6 11. Ne2 h6 12. Bh4 Qb6 13. c3 Rad8 14. Qc2 Ng4 15. Bxe7 Qc7 {1-0 (46) Megaranto,S (2532)-Sadorra,J (2470) Kuala Lumpur 2008}) 11. Bh4 {[%emt 0:00:47]} Bg4 {[%emt 0:05:45]} 12. Be2 {[%emt 0:01:44]} Bf5 $146 {[%emt 0:03:35]} ({Predecessor:} 12... Be6 13. Nd4 Nxd4 14. Qxd4 Nd7 15. Bxe7 Qxe7 {0-1 (79) Karlsson,R-Sampaoli,C (2201) ICC INT 2009}) 13. Bf3 {[%emt 0:05:13]} d4 {[%emt 0:01:57]} 14. Nb5 {[%emt 0:00:39]} d3 {[%emt 0:00:21]} 15. c3 {[%emt 0:01:16]} Qd7 {[%emt 0:06:27]} 16. N5d4 {[%emt 0:01:19]} Bg6 {[%emt 0:00:21]} 17. Re1 {[%emt 0:02:51]} Rfe8 {[%emt 0:02:20]} 18. Qd2 {[%emt 0:00:38]} Nxd4 {[%emt 0:00:48]} 19. Nxd4 {[%emt 0:00:07]} Bc5 {[%emt 0:00:16]} 20. Bxf6 {[%emt 0:01:22]} gxf6 {[%emt 0:00:02]} 21. Nb3 {[%emt 0:00:06]} Bf8 {[%emt 0:00:56]} 22. Rad1 {[%emt 0:01:06]} Kh7 {[%emt 0:02:27]} 23. Qf4 {[%emt 0:03:29]} h5 {[%emt 0:04:28]} 24. Be4 {[%emt 0:09:47]} ({Don't play} 24. Qxf6 Rxe1+ 25. Rxe1 d2 $17) 24... Bh6 {[%emt 0:04:39]} 25. Bxg6+ {[%emt 0:00:03]} fxg6 {[%emt 0:00:03]} 26. Qd4 {[%emt 0:00:02]} Qf5 {[%emt 0:02:50]} 27. Rxe8 {[%emt 0:01:04]} Rxe8 {[%emt 0:00:02]} 28. g3 {[%emt 0:00:43] [#]} (28. h3 $11 {remains equal.}) 28... Re2 {[%emt 0:00:31]} (28... h4 $1 $17 {[%mdl 512]} 29. Qxh4 Re2) 29. Rxd3 {[%emt 0:00:29]} Be3 $18 {[%emt 0:00:06]} (29... Rxf2 $11 {and Black has nothing to worry.} 30. Qd7+ {[%mdl 64] Double Attack} Kg8) 30. Qd7+ {[%emt 0:00:03] Double Attack} 1-0

[Event "NOR-ch Youth 2019"]
[Site "Skien"]
[Date "2019.11.09"]
[Round "3.6"]
[White "Opseth, Oliver"]
[Black "Gaure, Sigurd Lauvas"]
[Result "1/2-1/2"]
[ECO "B53"]
[WhiteElo "1795"]
[BlackElo "1648"]
[Annotator "NA"]
[PlyCount "133"]
[EventDate "2019.11.08"]
[EventType "swiss"]
[EventCountry "NOR"]
[SourceTitle "playchess.com"]
[Source "ChessBase"]
[SourceQuality "1"]
[TimeControl "2400+10"]

1. e4 {[%emt 0:00:00]} c5 {[%emt 0:00:00]} 2. Nf3 {[%emt 0:00:00]} d6 {[%emt 0:00:00]} 3. d4 {[%emt 0:00:00]} cxd4 {[%emt 0:00:00]} 4. Qxd4 {[%emt 0:00:00]} Nc6 {[%emt 0:00:01]} 5. Bb5 {[%emt 0:00:02]} Nf6 {[%emt 0:00:10]} 6. Nc3 {[%emt 0:00:30]} g6 {[%emt 0:00:13]} 7. Bg5 {[%emt 0:01:20]} Bg7 {[%emt 0:00:05]} 8. Qd2 {[%emt 0:00:08]} O-O {[%emt 0:00:56]} 9. Bh6 {[%emt 0:01:53]} Bg4 {[%emt 0:02:09]} 10. Bxg7 {[%emt 0:00:36]} Kxg7 {[%emt 0:00:04]} 11. O-O-O {[%emt 0:05:39]} a6 {[%emt 0:01:46]} 12. Be2 {[%emt 0:02:51]} Qa5 {[%emt 0:01:45]} 13. h3 {[%emt 0:02:05]} Be6 {[%emt 0:00:07]} 14. a3 {[%emt 0:05:49]} b5 {[%emt 0:01:01]} 15. Nd4 {[%emt 0:01:32]} Rfc8 {[%emt 0:01:27]} 16. Nxc6 {[%emt 0:03:59]} Rxc6 {[%emt 0:00:07]} 17. e5 {[%emt 0:02:12]} dxe5 {[%emt 0:03:45]} 18. Bf3 {[%emt 0:00:55]} e4 {[%emt 0:00:40]} 19. Nxe4 {[%emt 0:02:09]} Qxd2+ {[%emt 0:01:02]} 20. Rxd2 {[%emt 0:01:19]} Bd5 {[%emt 0:01:19]} 21. Re1 {[%emt 0:02:05]} Rac8 {[%emt 0:01:52]} 22. Re3 {[%emt 0:02:06]} a5 {[%emt 0:11:42]} 23. Nxf6 {[%emt 0:00:58]} Bxf3 {[%emt 0:00:03]} 24. Rxf3 {[%emt 0:00:51]} exf6 {[%emt 0:00:05]} 25. Rfd3 {[%emt 0:00:53]} b4 {[%emt 0:04:05]} 26. axb4 {[%emt 0:00:58]} axb4 {[%emt 0:00:02]} 27. Rd8 {[%emt 0:00:39]} Ra6 {[%emt 0:00:54]} 28. Kd1 {[%emt 0:01:10]} Rc5 {[%emt 0:00:55]} 29. R2d5 {[%emt 0:00:33]} Rcc6 {[%emt 0:01:20]} 30. Rb8 {[%emt 0:00:08]} Rc4 {[%emt 0:00:37]} 31. b3 {[%emt 0:00:47]} Re4 {[%emt 0:00:27]} 32. Kd2 {[%emt 0:00:28]} Rae6 {[%emt 0:00:30]} 33. Kd3 {[%emt 0:00:23]} f5 {[%emt 0:00:27]} 34. Rd4 {[%emt 0:00:18]} Re2 {[%emt 0:01:20]} 35. Rf4 {[%emt 0:00:11]} Kf6 {[%emt 0:00:41]} 36. Rb6 {[%emt 0:00:14]} Rxb6 {[%emt 0:00:50]} 37. Kxe2 {[%emt 0:00:01]} Kg5 {[%emt 0:00:09]} 38. Rd4 {[%emt 0:00:02]} f4 {[%emt 0:00:32]} 39. Kf3 {[%emt 0:00:07]} Rc6 {[%emt 0:00:21]} 40. Rxf4 {[%emt 0:00:36]} Rc3+ {[%emt 0:00:06]} 41. Ke4 {[%emt 0:00:01]} f5+ {[%emt 0:00:04]} 42. Ke5 {[%emt 0:00:05]} Rxc2 {[%emt 0:00:19]} 43. Rxb4 {[%emt 0:00:02]} Rxf2 {[%emt 0:00:02]} 44. Rb7 {[%emt 0:00:09]} h5 {[%emt 0:00:08]} 45. b4 {[%emt 0:00:29]} Rxg2 {[%emt 0:00:10]} 46. b5 {[%emt 0:00:06]} Rg3 {[%emt 0:00:10]} 47. b6 {[%emt 0:00:05]} Rxh3 {[%emt 0:00:03]} 48. Rb8 {[%emt 0:00:04]} Rb3 {[%emt 0:00:02]} 49. b7 {[%emt 0:00:00]} h4 {[%emt 0:00:01]} 50. Kd6 {[%emt 0:00:29]} h3 {[%emt 0:00:08]} 51. Kc7 {[%emt 0:00:04]} Rc3+ {[%emt 0:00:24]} 52. Kd6 {[%emt 0:00:07]} Rb3 {[%emt 0:00:02]} 53. Kc7 {[%emt 0:00:01]} h2 {[%emt 0:00:01]} 54. Rh8 {[%emt 0:00:04]} Kf4 {[%emt 0:00:15]} 55. Rxh2 {[%emt 0:00:06]} g5 {[%emt 0:00:01]} 56. Rf2+ {[%emt 0:00:41]} Kg4 {[%emt 0:00:12]} 57. Rg2+ {[%emt 0:00:18]} Kh4 {[%emt 0:00:05]} 58. b8=Q {[%emt 0:00:09]} Rxb8 {[%emt 0:00:01]} 59. Kxb8 {[%emt 0:00:01]} f4 {[%emt 0:00:03]} 60. Kc7 {[%emt 0:00:16]} f3 {[%emt 0:00:16]} 61. Ra2 {[%emt 0:00:05]} Kg3 {[%emt 0:00:02]} 62. Kd6 {[%emt 0:00:04]} f2 {[%emt 0:00:02]} 63. Ra1 {[%emt 0:00:03]} Kg2 {[%emt 0:00:01]} 64. Ke5 {[%emt 0:00:05]} g4 {[%emt 0:00:01]} 65. Kf4 {[%emt 0:00:25]} f1=Q+ {[%emt 0:00:44]} 66. Rxf1 {[%emt 0:00:03]} Kxf1 {[%emt 0:00:02]} 67. Kxg4 {[%emt 0:00:01]} 1/2-1/2